[Event "EYCC Girls U12 2018"]
[Site "Riga"]
[Date "2018.08.27"]
[Round "7"]
[White "Alekseenko, Mariya"]
[Black "Gaal, Zsoka"]
[Result "1-0"]
[ECO "A16"]
[WhiteElo "1750"]
[BlackElo "2008"]
[Annotator "NA"]
[PlyCount "141"]
[EventDate "2018.08.20"]
[EventType "swiss"]
[EventCountry "LAT"]
[SourceTitle "playchess.com"]
[Source "ChessBase"]
[SourceQuality "1"]
[TimeControl "40/5400+30:1800+30"]

1. c4 {[%emt 0:00:00]} Nf6 {[%emt 0:00:01]} 2. Nc3 {[%emt 0:00:00]} g6 {[%emt 0:00:24]} 3. g3 {[%emt 0:00:00]} Bg7 {[%emt 0:00:16]} 4. Bg2 {[%emt 0:00:00]} c5 {[%emt 0:00:13]} 5. e3 {[%emt 0:00:11]} O-O {[%emt 0:00:47]} 6. Nge2 {[%emt 0:00:09]} Nc6 {[%emt 0:00:28]} 7. d3 {[%emt 0:00:47]} d6 {[%emt 0:03:07]} 8. O-O {[%emt 0:00:58]} Bf5 {[%emt 0:02:18] A36: Symmetrical English vs ...g6: 4 Bg2 Bg7} (8... Bg4 9. h3 Bd7 10. b3 a6 11. Bb2 Rb8 12. d4 cxd4 13. exd4 b5 14. cxb5 axb5 15. d5 Na7 16. Nd4 {0-1 (31) Grischuk,A (2771)-Andreikin,D (2683) Moscow 2010}) 9. h3 {[%emt 0:07:14]} a6 {[%emt 0:09:41]} 10. a3 {[%emt 0:00:42]} Rb8 {[%emt 0:01:15]} 11. Kh2 {[%emt 0:23:09]} Bd7 {[%emt 0:06:27]} 12. Rb1 {[%emt 0:00:52]} b5 {[%emt 0:02:53]} 13. cxb5 {[%emt 0:00:30]} axb5 {[%emt 0:00:15]} 14. b4 $1 {[%emt 0:00:24]} cxb4 {[%emt 0:05:46]} 15. axb4 {[%emt 0:00:07]} Qb6 {[%emt 0:01:14]} 16. d4 $146 {[%emt 0:14:09]} ({Predecessor:} 16. Bd2) 16... Rfc8 {[%emt 0:12:32]} 17. e4 {[%emt 0:00:22]} (17. Rb3 $11 {hält das Gleichgewicht.}) 17... Qd8 {[%emt 0:13:41]} 18. Be3 {[%emt 0:01:02]} e5 {[%emt 0:03:09]} 19. d5 {[%emt 0:00:39]} Nd4 {[%emt 0:01:44]} 20. Nxd4 {[%emt 0:09:53]} Rxc3 {[%emt 0:02:02]} 21. Nb3 {[%emt 0:00:06]} Qe7 {[%emt 0:12:19]} 22. Qd2 {[%emt 0:01:26]} Rcc8 {[%emt 0:06:02]} 23. Rfc1 {[%emt 0:00:30]} Ne8 {[%emt 0:02:51]} 24. Na5 {[%emt 0:00:23]} h5 {[%emt 0:03:47]} 25. Rxc8 {[%emt 0:00:38]} Rxc8 {[%emt 0:00:23]} 26. Rc1 {[%emt 0:00:05]} Nf6 {[%emt 0:02:57]} 27. Rxc8+ {[%emt 0:00:55]} Bxc8 {[%emt 0:00:02]} 28. Qc2 {[%emt 0:00:12]} Qd7 {[%emt 0:01:44]} 29. Qc6 {[%emt 0:00:28]} Bf8 {[%emt 0:01:25]} 30. f3 {[%emt 0:03:56]} Ne8 {[%emt 0:02:33]} 31. Bb6 {[%emt 0:00:27]} Nf6 {[%emt 0:01:08]} 32. Bf1 {[%emt 0:02:04]} Ba6 {[%emt 0:01:24]} 33. Qxd7 {[%emt 0:02:54]} Nxd7 {[%emt 0:00:01]} 34. Bc7 {[%emt 0:00:08]} f5 {[%emt 0:00:59]} 35. Nc6 {[%emt 0:01:51]} fxe4 {[%emt 0:00:24]} 36. fxe4 {[%emt 0:00:07]} Nf6 {[%emt 0:00:21]} 37. Bd3 {[%emt 0:00:21]} Bb7 {[%emt 0:00:57]} 38. Bd8 {[%emt 0:00:32]} Kf7 {[%emt 0:00:44]} 39. Bxf6 {[%emt 0:01:46]} Kxf6 {[%emt 0:00:01]} 40. Bxb5 {[%emt 0:00:00]} Bh6 {[%emt 0:00:00]} 41. Na5 {[%emt 0:01:50]} Bc8 {[%emt 0:09:35]} 42. Nc4 {[%emt 0:00:05]} Ke7 {[%emt 0:02:34]} 43. Bc6 {[%emt 0:00:30]} Bf8 {[%emt 0:01:43]} 44. b5 {[%emt 0:00:10]} Kd8 {[%emt 0:00:34]} 45. h4 {[%emt 0:00:12]} Kc7 {[%emt 0:08:00]} 46. b6+ {[%emt 0:01:12]} Kb8 {[%emt 0:00:10]} 47. Be8 {[%emt 0:04:24]} Kb7 {[%emt 0:03:50]} 48. Bxg6 {[%emt 0:00:33]} Bg4 {[%emt 0:01:02]} 49. Be8 {[%emt 0:04:27]} Be7 $18 {[%emt 0:00:41]} 50. Bc6+ {[%emt 0:00:42]} Kb8 {[%emt 0:00:04]} 51. b7 {[%emt 0:01:02]} Be2 {[%emt 0:01:46]} 52. Nb6 {[%emt 0:00:18]} Bg4 {[%emt 0:00:06]} 53. Nd7+ {[%emt 0:00:05]} Bxd7 {[%emt 0:00:26]} 54. Bxd7 {[%emt 0:00:03]} Kxb7 {[%emt 0:02:05]} 55. Be8 {[%emt 0:00:05]} Kb6 {[%emt 0:00:53]} 56. Bxh5 {[%emt 0:00:11]} Kc5 {[%emt 0:00:12]} 57. Kh3 {[%emt 0:00:45]} Kd4 {[%emt 0:00:18]} 58. Bg6 {[%emt 0:01:05]} Ke3 {[%emt 0:00:49]} 59. Kg4 {[%emt 0:00:08]} Kf2 {[%emt 0:00:35]} 60. h5 {[%emt 0:00:06]} Bf8 {[%emt 0:00:29]} 61. Kf5 {[%emt 0:00:10]} Kxg3 {[%emt 0:00:28]} 62. Kf6 {[%emt 0:00:06]} Kf4 {[%emt 0:00:28]} 63. Kf7 {[%emt 0:00:26]} Bh6 {[%emt 0:00:12]} 64. Ke7 {[%emt 0:00:07]} Kg5 {[%emt 0:00:36]} 65. Kxd6 {[%emt 0:00:45]} Kf6 {[%emt 0:00:15]} 66. Kc7 {[%emt 0:00:49]} Bd2 {[%emt 0:01:28]} 67. d6 {[%emt 0:00:57]} Ba5+ {[%emt 0:00:50]} 68. Kc8 {[%emt 0:00:07]} Ke6 {[%emt 0:01:41]} 69. d7 {[%emt 0:00:06]} Ke7 {[%emt 0:00:37]} 70. h6 {[%emt 0:00:06]} Kf6 {[%emt 0:00:53]} 71. h7 {[%emt 0:00:06]} 1-0

[Event "EYCC Girls U12 2018"]
[Site "Riga"]
[Date "2018.08.27"]
[Round "7"]
[White "Anacoglu, Cisel"]
[Black "Zvereva, Margarita"]
[Result "1/2-1/2"]
[ECO "B52"]
[WhiteElo "1734"]
[BlackElo "1898"]
[Annotator "NA"]
[PlyCount "123"]
[EventDate "2018.08.20"]
[EventType "swiss"]
[EventCountry "LAT"]
[SourceTitle "playchess.com"]
[Source "ChessBase"]
[SourceQuality "1"]
[TimeControl "40/5400+30:1800+30"]

1. e4 {[%emt 0:00:00]} c5 {[%emt 0:00:00]} 2. Nf3 {[%emt 0:00:00]} d6 {[%emt 0:00:00]} 3. Bb5+ {[%emt 0:00:00]} Bd7 {[%emt 0:00:00]} 4. Bxd7+ {[%emt 0:00:00]} Qxd7 {[%emt 0:00:01]} 5. c4 {[%emt 0:00:00]} Nc6 {[%emt 0:00:15]} 6. d4 {[%emt 0:00:00]} cxd4 {[%emt 0:00:09]} 7. Nxd4 {[%emt 0:00:02]} g6 {[%emt 0:00:09]} 8. Nc3 {[%emt 0:00:14]} Bg7 {[%emt 0:00:13]} 9. Be3 {[%emt 0:00:08]} Nf6 {[%emt 0:00:14]} 10. h3 {[%emt 0:00:05]} O-O {[%emt 0:01:39]} 11. O-O {[%emt 0:00:05]} a6 {[%emt 0:00:35]} 12. a4 {[%emt 0:02:26]} e6 {[%emt 0:02:39]} 13. f4 {[%emt 0:09:14]} Rac8 {[%emt 0:07:33]} 14. b3 {[%emt 0:02:23]} Ne8 {[%emt 0:30:55]} 15. Nde2 {[%emt 0:24:46]} Qe7 $14 {[%emt 0:05:23]} 16. Qd2 {[%emt 0:08:59]} Nc7 {[%emt 0:07:37]} 17. Rfd1 {[%emt 0:12:01]} Rfd8 {[%emt 0:01:34]} 18. Bb6 {[%emt 0:03:40]} Rd7 {[%emt 0:06:06]} 19. e5 {[%emt 0:08:27]} Ne8 {[%emt 0:06:20]} 20. Ne4 {[%emt 0:02:50]} Nb8 {[%emt 0:05:15]} 21. Nxd6 {[%emt 0:13:47]} Nxd6 {[%emt 0:00:20]} 22. exd6 {[%emt 0:00:02]} Rxd6 {[%emt 0:03:33]} 23. Qxd6 {[%emt 0:02:01]} Qxd6 {[%emt 0:00:05]} 24. Rxd6 {[%emt 0:00:01]} Bxa1 {[%emt 0:00:07]} 25. Bd4 {[%emt 0:01:32]} Bxd4+ {[%emt 0:00:15]} 26. Nxd4 {[%emt 0:00:02]} h6 {[%emt 0:13:54]} 27. c5 {[%emt 0:09:39]} Kh7 {[%emt 0:01:33]} 28. b4 {[%emt 0:00:18]} Rc7 {[%emt 0:03:13]} 29. Rd8 {[%emt 0:00:59]} Nd7 {[%emt 0:00:59]} 30. Nf3 {[%emt 0:00:41]} a5 {[%emt 0:02:33]} 31. bxa5 {[%emt 0:00:27]} Nxc5 {[%emt 0:00:20]} 32. Ne5 {[%emt 0:00:37]} Nxa4 {[%emt 0:00:46]} 33. Rd4 {[%emt 0:00:01]} Nc3 {[%emt 0:00:43]} 34. Kh2 {[%emt 0:00:47]} Kg7 {[%emt 0:01:10]} 35. Nc4 {[%emt 0:00:38]} Nb5 {[%emt 0:00:36]} 36. Re4 {[%emt 0:00:10]} Nc3 {[%emt 0:00:38]} 37. Rd4 {[%emt 0:00:02]} Nd5 {[%emt 0:00:24]} 38. Nd6 {[%emt 0:00:31]} Rd7 {[%emt 0:00:32]} 39. Ne4 {[%emt 0:00:02]} Kf8 {[%emt 0:00:36]} 40. g4 {[%emt 0:00:00]} Ke7 {[%emt 0:00:00]} 41. f5 {[%emt 0:05:24]} gxf5 {[%emt 0:06:11]} 42. gxf5 {[%emt 0:00:01]} Nf6 {[%emt 0:03:22]} 43. Rb4 {[%emt 0:00:42]} Nxe4 {[%emt 0:01:55]} 44. Rxe4 {[%emt 0:00:01]} Kf6 {[%emt 0:01:02]} 45. fxe6 {[%emt 0:00:10]} fxe6 {[%emt 0:00:07]} 46. Kg3 {[%emt 0:03:09]} e5 {[%emt 0:01:41]} 47. Rh4 {[%emt 0:07:54]} Kg5 {[%emt 0:02:28]} 48. Rg4+ {[%emt 0:01:36]} Kf5 {[%emt 0:00:27]} 49. Rh4 {[%emt 0:01:05]} Rh7 {[%emt 0:05:33]} 50. Rh5+ {[%emt 0:08:00]} Ke4 {[%emt 0:00:32]} 51. Kf2 {[%emt 0:00:57]} Kf4 {[%emt 0:03:11]} 52. Rh4+ {[%emt 0:00:29]} Kg5 {[%emt 0:00:17]} 53. Rg4+ {[%emt 0:00:12]} Kf5 {[%emt 0:00:05]} 54. Rg8 {[%emt 0:02:06]} Re7 {[%emt 0:02:33]} 55. Ke3 {[%emt 0:00:32]} Rc7 {[%emt 0:02:42]} 56. Rf8+ {[%emt 0:00:46]} Kg6 {[%emt 0:00:25]} 57. Re8 {[%emt 0:05:23]} Rc5 {[%emt 0:00:36]} 58. Re6+ {[%emt 0:00:22]} Kg5 {[%emt 0:00:19]} 59. Rb6 {[%emt 0:01:17]} Rxa5 {[%emt 0:00:12]} 60. Rxb7 {[%emt 0:00:02]} h5 {[%emt 0:02:12]} 61. Ke4 {[%emt 0:01:48]} Kh4 {[%emt 0:00:33]} 62. Rb3 1/2-1/2

[Event "EYCC Girls U12 2018"]
[Site "Riga"]
[Date "2018.08.27"]
[Round "7"]
[White "Tsirekidze, Barbare"]
[Black "Karmanova, Olga Dm"]
[Result "1/2-1/2"]
[ECO "A41"]
[WhiteElo "1413"]
[BlackElo "1730"]
[Annotator "NA"]
[PlyCount "120"]
[EventDate "2018.08.20"]
[EventType "swiss"]
[EventCountry "LAT"]
[SourceTitle "playchess.com"]
[Source "ChessBase"]
[SourceQuality "1"]
[TimeControl "40/5400+30:1800+30"]

1. d4 {[%emt 0:00:00]} d6 {[%emt 0:00:00]} 2. Bf4 {[%emt 0:00:00]} g6 {[%emt 0:00:21]} 3. e3 {[%emt 0:00:01]} Bg7 {[%emt 0:01:06]} 4. c3 {[%emt 0:01:32]} Nd7 {[%emt 0:01:48]} 5. Nf3 {[%emt 0:00:30]} e5 {[%emt 0:00:48]} 6. dxe5 {[%emt 0:03:10]} dxe5 {[%emt 0:00:21]} 7. Bg3 {[%emt 0:00:30]} Nh6 {[%emt 0:02:35]} 8. Bh4 {[%emt 0:08:50]} f6 {[%emt 0:04:23]} 9. Qd5 {[%emt 0:30:45]} Nb6 {[%emt 0:16:37]} 10. Qxd8+ {[%emt 0:13:29]} Kxd8 {[%emt 0:00:21]} 11. Na3 {[%emt 0:02:03]} c6 {[%emt 0:08:01]} 12. O-O-O+ {[%emt 0:04:44]} Kc7 {[%emt 0:06:53]} 13. Bg3 {[%emt 0:06:28]} Be6 {[%emt 0:04:04]} 14. c4 {[%emt 0:07:35]} Nf7 {[%emt 0:09:33]} 15. Nd4 {[%emt 0:09:33]} Bd7 {[%emt 0:05:14]} 16. Nb3 {[%emt 0:02:49]} Bf8 {[%emt 0:01:40]} 17. Nb1 {[%emt 0:02:51]} a5 {[%emt 0:03:11]} 18. Be2 {[%emt 0:01:30]} a4 {[%emt 0:03:10]} 19. N3d2 {[%emt 0:00:14]} f5 {[%emt 0:00:41]} 20. f3 {[%emt 0:00:53]} Bc5 {[%emt 0:01:00]} 21. Nf1 {[%emt 0:01:08]} Be6 {[%emt 0:01:18]} 22. b3 {[%emt 0:00:44]} g5 {[%emt 0:00:50]} 23. Be1 {[%emt 0:00:40]} axb3 {[%emt 0:01:31]} 24. axb3 {[%emt 0:00:02]} Ra1 {[%emt 0:02:10]} 25. Bc3 {[%emt 0:00:54]} Ba3+ {[%emt 0:00:19]} 26. Bb2 {[%emt 0:00:08]} Bxb2+ {[%emt 0:00:36]} 27. Kxb2 {[%emt 0:00:03]} Rha8 {[%emt 0:01:14]} 28. Nc3 {[%emt 0:00:48]} Rxd1 {[%emt 0:01:15]} 29. Nxd1 {[%emt 0:00:29]} f4 {[%emt 0:01:19]} 30. Nc3 {[%emt 0:01:09]} Bf5 {[%emt 0:01:02]} 31. g4 {[%emt 0:00:40]} Bg6 {[%emt 0:00:16]} 32. exf4 {[%emt 0:00:09]} exf4 {[%emt 0:00:44]} 33. Nd2 {[%emt 0:00:13]} Re8 {[%emt 0:01:30]} 34. Nde4 {[%emt 0:00:22]} Nd7 {[%emt 0:01:20]} 35. Rd1 {[%emt 0:01:00]} Bxe4 {[%emt 0:00:25]} 36. Nxe4 {[%emt 0:00:04]} b6 {[%emt 0:01:48]} 37. Rxd7+ {[%emt 0:00:43]} Kxd7 {[%emt 0:00:11]} 38. Nf6+ {[%emt 0:00:04]} Ke7 {[%emt 0:00:12]} 39. Nxe8 {[%emt 0:00:13]} Kxe8 {[%emt 0:00:22]} 40. Kc3 {[%emt 0:00:00]} c5 {[%emt 0:00:00]} 41. Bd3 {[%emt 0:01:19]} Ne5 {[%emt 0:02:41]} 42. Be4 {[%emt 0:00:37]} Ke7 {[%emt 0:00:38]} 43. b4 {[%emt 0:06:21]} Kd6 {[%emt 0:01:33]} 44. b5 {[%emt 0:00:20]} h6 {[%emt 0:00:38]} 45. h3 {[%emt 0:00:39]} Nf7 {[%emt 0:02:32]} 46. Kd3 {[%emt 0:03:01]} Ke5 {[%emt 0:03:36]} 47. Kc3 {[%emt 0:00:50]} Nd6 {[%emt 0:01:43]} 48. Bc6 {[%emt 0:00:24]} h5 {[%emt 0:03:55]} 49. Ba8 {[%emt 0:03:50]} Ne8 {[%emt 0:01:57]} 50. Bc6 {[%emt 0:02:17]} Nd6 {[%emt 0:01:39]} 51. Ba8 {[%emt 0:00:14]} Kf6 {[%emt 0:00:09]} 52. Bd5 {[%emt 0:02:26]} Ne8 {[%emt 0:01:23]} 53. Kd3 {[%emt 0:02:30]} h4 {[%emt 0:04:13]} 54. Ke4 {[%emt 0:04:05]} Nd6+ {[%emt 0:03:14]} 55. Kd3 {[%emt 0:00:07]} Ke5 {[%emt 0:00:19]} 56. Bc6 {[%emt 0:00:20]} Nf7 {[%emt 0:01:01]} 57. Bd5 {[%emt 0:02:17]} Nd8 {[%emt 0:00:20]} 58. Kc3 {[%emt 0:00:59]} Ne6 {[%emt 0:00:19]} 59. Bxe6 {[%emt 0:01:29]} Kxe6 {[%emt 0:00:07]} 60. Kd2 {[%emt 0:00:46]} Ke5 1/2-1/2

[Event "EYCC Girls U12 2018"]
[Site "Riga"]
[Date "2018.08.28"]
[Round "8"]
[White "Zvereva, Margarita"]
[Black "Kozachenko, Maria"]
[Result "1/2-1/2"]
[ECO "B92"]
[WhiteElo "1898"]
[BlackElo "1792"]
[Annotator "NA RC"]
[PlyCount "89"]
[EventDate "2018.08.20"]
[EventType "swiss"]
[EventCountry "LAT"]
[SourceTitle "playchess.com"]
[Source "ChessBase"]
[SourceQuality "1"]
[TimeControl "40/5400+30:1800+30"]

1. e4 {[%emt 0:00:00]} c5 {[%emt 0:00:00]} 2. Nf3 {[%emt 0:00:00]} d6 {[%emt 0:00:00]} 3. d4 {[%emt 0:00:00]} cxd4 {[%emt 0:00:00]} 4. Nxd4 {[%emt 0:00:00]} Nf6 {[%emt 0:00:02]} 5. Nc3 {[%emt 0:00:00]} a6 {[%emt 0:00:12]} 6. Be2 {[%emt 0:00:00]} e5 {[%emt 0:00:08]} 7. Nb3 {[%emt 0:00:00]} Be7 {[%emt 0:00:09]} 8. Be3 {[%emt 0:00:28]} Be6 {[%emt 0:03:48]} 9. Nd5 {[%emt 0:00:28]} Nxd5 {[%emt 0:01:55]} 10. exd5 {[%emt 0:00:12]} Bf5 {[%emt 0:00:26]} 11. O-O {[%emt 0:00:38]} O-O {[%emt 0:07:40]} 12. Qd2 {[%emt 0:02:15] B92: Sizilianisch (Najdorf-Variante mit 6.Le2)} Nd7 {[%emt 0:02:18]} (12... Bg6 13. Rac1 a5 14. a4 Nd7 15. Bb5 f5 16. f4 Nf6 17. g3 Ng4 18. c3 Bf6 19. Rce1 {½-½ (36) Mekhitarian,K (2550)-Oparin,G (2617) Abu Dhabi 2016}) 13. c4 {[%emt 0:01:08]} b6 {[%emt 0:01:45]} 14. Rac1 {[%emt 0:01:29]} Nc5 $146 {[%emt 0:01:52]} ({Vorgänger:} 14... a5 15. f4 a4 16. Na1 exf4 17. Bxf4 Bg6 18. Nc2 Bxc2 19. Rxc2 Nc5 20. Rb1 Bf6 {0-1 (31) Vetoshko,V (2332)-Matviishen,V (2124) Lvov 2014}) 15. Nxc5 {[%emt 0:05:44]} bxc5 {[%emt 0:00:29]} 16. b4 {[%emt 0:02:18]} cxb4 {[%emt 0:02:38]} 17. Qxb4 {[%emt 0:00:20]} Qd7 {[%emt 0:02:35]} 18. Rfd1 {[%emt 0:04:13]} Rfc8 {[%emt 0:05:50]} 19. c5 {[%emt 0:11:14]} dxc5 {[%emt 0:06:56]} 20. Bxc5 {[%emt 0:00:08]} Bxc5 {[%emt 0:01:23]} 21. Rxc5 {[%emt 0:00:11]} Rxc5 {[%emt 0:00:21]} 22. Qxc5 {[%emt 0:00:06]} f6 {[%emt 0:13:46]} 23. d6 {[%emt 0:12:21]} Be6 {[%emt 0:11:53]} 24. Bc4 {[%emt 0:18:34]} Bxc4 {[%emt 0:02:54]} 25. Qxc4+ {[%emt 0:00:47]} Kh8 {[%emt 0:00:36]} 26. Qc7 {[%emt 0:05:36]} Rd8 {[%emt 0:01:14]} 27. Qb6 {[%emt 0:10:22]} Qc8 {[%emt 0:03:06]} 28. h3 {[%emt 0:00:55]} h6 {[%emt 0:01:36]} 29. Kh2 {[%emt 0:06:20]} Rd7 {[%emt 0:02:13]} 30. Rd5 {[%emt 0:09:37]} Qc4 {[%emt 0:03:24]} 31. Rc5 {[%emt 0:03:40]} Qf4+ {[%emt 0:03:56]} 32. Kg1 {[%emt 0:00:11]} e4 {[%emt 0:00:40]} 33. Rc6 {[%emt 0:02:36]} a5 {[%emt 0:03:42]} 34. Qa6 {[%emt 0:02:15]} Kh7 {[%emt 0:02:42]} 35. Qxa5 {[%emt 0:01:13]} Rxd6 {[%emt 0:00:32]} 36. Rxd6 {[%emt 0:00:33]} Qc1+ {[%emt 0:00:49]} 37. Rd1 {[%emt 0:01:04]} Qxd1+ {[%emt 0:00:06]} 38. Kh2 {[%emt 0:00:03]} Qe2 {[%emt 0:01:51]} 39. Qf5+ {[%emt 0:00:59]} Kh8 {[%emt 0:00:50]} 40. a4 {[%emt 0:00:00]} e3 {[%emt 0:00:00]} 41. fxe3 {[%emt 0:01:56]} Qxe3 {[%emt 0:02:03]} 42. Qc8+ $11 {[%emt 0:06:16]} Kh7 {[%emt 0:00:17]} 43. Qc7 {[%emt 0:00:27]} f5 {[%emt 0:01:17]} 44. a5 {[%emt 0:00:34]} f4 {[%emt 0:00:36]} 45. a6 {[%emt 0:03:01]} 1/2-1/2

[Event "EYCC Girls U12 2018"]
[Site "Riga"]
[Date "2018.08.28"]
[Round "8"]
[White "Tarasenka, Aliaksandra"]
[Black "Bashylina, Luisa"]
[Result "1-0"]
[ECO "A10"]
[WhiteElo "1747"]
[BlackElo "1817"]
[Annotator "NA RC"]
[PlyCount "77"]
[EventDate "2018.08.20"]
[EventType "swiss"]
[EventCountry "LAT"]
[SourceTitle "playchess.com"]
[Source "ChessBase"]
[SourceQuality "1"]
[TimeControl "40/5400+30:1800+30"]

1. c4 {[%emt 0:00:00]} d6 {[%emt 0:00:02]} 2. Nc3 {[%emt 0:00:00]} g6 {[%emt 0:00:24]} 3. g3 {[%emt 0:00:25]} Bg7 {[%emt 0:00:35]} 4. Bg2 {[%emt 0:00:11]} Nc6 {[%emt 0:01:06]} 5. d3 {[%emt 0:00:24]} Nf6 {[%emt 0:02:30]} 6. e4 {[%emt 0:01:01]} O-O {[%emt 0:03:42]} 7. Nge2 {[%emt 0:00:11]} e5 {[%emt 0:01:11]} 8. O-O {[%emt 0:00:30]} Nh5 {[%emt 0:02:22]} 9. Be3 {[%emt 0:02:03]} f5 {[%emt 0:03:02]} 10. exf5 {[%emt 0:01:26]} Bxf5 {[%emt 0:04:28]} 11. d4 {[%emt 0:04:34]} Qc8 {[%emt 0:03:58]} 12. Nd5 {[%emt 0:07:06]} Kh8 {[%emt 0:08:14]} 13. b4 {[%emt 0:10:56]} Nf6 {[%emt 0:06:22]} 14. b5 {[%emt 0:07:03]} Nxd5 {[%emt 0:07:31]} 15. bxc6 {[%emt 0:05:11]} Nxe3 {[%emt 0:02:58]} 16. cxb7 {[%emt 0:15:14]} Nxd1 {[%emt 0:03:32]} 17. bxc8=Q {[%emt 0:10:17]} Raxc8 {[%emt 0:00:43]} 18. Raxd1 {[%emt 0:01:58]} Rb8 {[%emt 0:06:27]} 19. dxe5 {[%emt 0:06:19]} dxe5 {[%emt 0:03:12]} 20. c5 {[%emt 0:05:42]} Rb2 {[%emt 0:01:59]} 21. Nc3 {[%emt 0:01:35]} h6 {[%emt 0:12:00]} 22. c6 {[%emt 0:03:16]} Be6 {[%emt 0:03:08]} 23. Nd5 {[%emt 0:06:02]} Rf7 {[%emt 0:01:29]} 24. a4 {[%emt 0:02:09]} Bf8 {[%emt 0:07:09]} 25. f4 {[%emt 0:05:03]} Bc5+ {[%emt 0:02:05]} 26. Kh1 {[%emt 0:00:24]} exf4 {[%emt 0:05:41]} 27. Nxf4 {[%emt 0:00:21]} Bf5 {[%emt 0:01:30]} 28. g4 {[%emt 0:01:19]} Bc2 {[%emt 0:02:08]} 29. Rd8+ {[%emt 0:01:48]} Kh7 {[%emt 0:01:30]} 30. Rd7 {[%emt 0:00:18]} Re7 {[%emt 0:01:37]} 31. Nd5 {[%emt 0:01:11]} Rxd7 {[%emt 0:01:28]} 32. cxd7 {[%emt 0:00:02]} Rb8 {[%emt 0:00:10]} 33. Nxc7 {[%emt 0:00:53]} Bd3 {[%emt 0:00:54]} 34. Rd1 {[%emt 0:00:56]} Be7 {[%emt 0:00:56]} 35. Rxd3 {[%emt 0:00:59]} Rb1+ {[%emt 0:00:05]} 36. Bf1 {[%emt 0:00:06]} Rxf1+ {[%emt 0:00:06]} 37. Kg2 {[%emt 0:00:07]} Rf7 {[%emt 0:01:28]} 38. Ne6 {[%emt 0:00:34]} Rf6 {[%emt 0:00:44]} 39. d8=Q {[%emt 0:00:28]} 1-0

[Event "EYCC Girls U12 2018"]
[Site "Riga"]
[Date "2018.08.28"]
[Round "8"]
[White "Karmanova, Olga Dm"]
[Black "Alekseenko, Mariya"]
[Result "1-0"]
[ECO "B24"]
[WhiteElo "1730"]
[BlackElo "1750"]
[Annotator "NA RC"]
[PlyCount "95"]
[EventDate "2018.08.20"]
[EventType "swiss"]
[EventCountry "LAT"]
[SourceTitle "playchess.com"]
[Source "ChessBase"]
[SourceQuality "1"]
[TimeControl "40/5400+30:1800+30"]

1. e4 {[%emt 0:00:00]} c5 {[%emt 0:00:00]} 2. Nc3 {[%emt 0:00:00]} Nc6 {[%emt 0:00:00]} 3. Bb5 {[%emt 0:00:00]} a6 {[%emt 0:00:13]} 4. Bxc6 {[%emt 0:00:00]} bxc6 {[%emt 0:00:07]} 5. f4 {[%emt 0:01:04]} d6 {[%emt 0:00:53]} 6. d3 {[%emt 0:01:26]} e6 {[%emt 0:04:48]} 7. Nf3 {[%emt 0:00:29]} g6 {[%emt 0:05:37]} 8. O-O {[%emt 0:02:03]} Bg7 {[%emt 0:00:03]} 9. Be3 {[%emt 0:02:02]} Ne7 {[%emt 0:00:05]} 10. Qe1 {[%emt 0:03:00]} O-O {[%emt 0:02:13]} 11. Qh4 {[%emt 0:01:20]} f5 {[%emt 0:13:56]} 12. e5 {[%emt 0:03:30]} Nd5 {[%emt 0:03:54]} 13. Qxd8 {[%emt 0:02:53]} Rxd8 {[%emt 0:00:20]} 14. Nxd5 {[%emt 0:00:10]} exd5 {[%emt 0:00:17]} 15. exd6 {[%emt 0:02:00]} d4 {[%emt 0:04:21]} 16. Bf2 {[%emt 0:01:56]} Bf6 {[%emt 0:00:57]} 17. Rfe1 {[%emt 0:02:15]} Ra7 {[%emt 0:04:37]} 18. Nd2 {[%emt 0:02:31]} Kf7 {[%emt 0:02:26]} 19. Nb3 {[%emt 0:01:44]} Rxd6 {[%emt 0:05:16]} 20. Nxc5 {[%emt 0:00:27]} Be6 {[%emt 0:02:16]} 21. Nb3 {[%emt 0:01:57]} Bxb3 {[%emt 0:16:32]} 22. axb3 {[%emt 0:00:09]} c5 {[%emt 0:00:13]} 23. Ra4 {[%emt 0:02:13]} Rb7 {[%emt 0:05:11]} 24. Rea1 {[%emt 0:01:17]} Rbb6 {[%emt 0:00:42]} 25. Be1 {[%emt 0:00:25]} Re6 {[%emt 0:02:05]} 26. Kf2 {[%emt 0:00:44]} Be7 {[%emt 0:00:33]} 27. Ba5 {[%emt 0:00:51]} Rbc6 {[%emt 0:00:31]} 28. g3 {[%emt 0:01:10]} h6 {[%emt 0:00:20]} 29. c3 {[%emt 0:03:05]} Bf6 {[%emt 0:00:29]} 30. Rc4 {[%emt 0:00:35]} g5 {[%emt 0:01:52]} 31. fxg5 {[%emt 0:02:56]} Bxg5 {[%emt 0:02:55]} 32. b4 {[%emt 0:04:27]} Be3+ {[%emt 0:00:19]} 33. Kf3 {[%emt 0:00:37]} cxb4 {[%emt 0:02:11]} 34. Rxc6 {[%emt 0:00:36]} Rxc6 {[%emt 0:00:20]} 35. Bxb4 {[%emt 0:00:07]} Re6 {[%emt 0:02:49]} 36. Bc5 {[%emt 0:02:02]} Rc6 {[%emt 0:07:22]} 37. cxd4 {[%emt 0:01:47]} Bg5 {[%emt 0:00:04]} 38. Re1 {[%emt 0:00:38]} Bf6 {[%emt 0:00:36]} 39. b4 {[%emt 0:00:13]} Rc7 {[%emt 0:01:06]} 40. d5 {[%emt 0:00:00]} Rd7 {[%emt 0:00:00]} 41. d6 {[%emt 0:00:50]} a5 {[%emt 0:00:30]} 42. bxa5 {[%emt 0:00:27]} Bc3 {[%emt 0:00:05]} 43. Re7+ {[%emt 0:01:01]} Rxe7 {[%emt 0:00:20]} 44. dxe7 {[%emt 0:00:06]} Bxa5 {[%emt 0:00:04]} 45. Kf4 {[%emt 0:00:07]} Bd2+ {[%emt 0:00:20]} 46. Kxf5 {[%emt 0:00:06]} Bg5 {[%emt 0:00:04]} 47. h4 {[%emt 0:00:16]} Bf6 {[%emt 0:00:13]} 48. d4 {[%emt 0:00:05]} 1-0

[Event "EYCC Girls U12 2018"]
[Site "Riga"]
[Date "2018.08.28"]
[Round "8"]
[White "Shubenkova, Veronika"]
[Black "Tsirekidze, Barbare"]
[Result "1/2-1/2"]
[ECO "D00"]
[WhiteElo "1700"]
[BlackElo "1413"]
[Annotator "NA RC"]
[PlyCount "62"]
[EventDate "2018.08.20"]
[EventType "swiss"]
[EventCountry "LAT"]
[SourceTitle "playchess.com"]
[Source "ChessBase"]
[SourceQuality "1"]
[TimeControl "40/5400+30:1800+30"]

1. d4 {[%emt 0:00:22]} d5 {[%emt 0:00:23]} 2. e3 {[%emt 0:01:36]} Nf6 {[%emt 0:03:17]} 3. f4 {[%emt 0:03:43]} e6 {[%emt 0:02:02]} 4. Nf3 {[%emt 0:00:44]} Be7 {[%emt 0:00:59]} 5. Bd3 {[%emt 0:00:49]} O-O {[%emt 0:01:12]} 6. O-O {[%emt 0:02:09]} b6 {[%emt 0:00:34]} 7. Nbd2 {[%emt 0:04:48]} Bb7 {[%emt 0:00:57]} 8. c3 {[%emt 0:02:19]} Nbd7 {[%emt 0:06:53]} 9. Ne5 {[%emt 0:02:50]} c5 {[%emt 0:05:10]} 10. Qe2 {[%emt 0:04:34]} Rc8 {[%emt 0:08:22]} 11. a3 {[%emt 0:01:00]} Re8 {[%emt 0:15:35]} 12. Rf3 {[%emt 0:05:57]} Bf8 {[%emt 0:11:18]} 13. Rh3 {[%emt 0:03:02]} g6 {[%emt 0:03:00]} 14. g4 {[%emt 0:01:20]} Nxe5 {[%emt 0:13:07]} 15. fxe5 {[%emt 0:00:24]} Nd7 {[%emt 0:00:25]} 16. Nf3 {[%emt 0:03:50]} c4 {[%emt 0:07:03]} 17. Bc2 {[%emt 0:02:35]} f6 {[%emt 0:01:04]} 18. Ba4 {[%emt 0:01:49]} Bc6 {[%emt 0:01:53]} 19. Bxc6 {[%emt 0:00:49]} Rxc6 {[%emt 0:00:06]} 20. exf6 {[%emt 0:01:12]} Nxf6 {[%emt 0:01:54]} 21. Ne5 {[%emt 0:01:21]} Rc7 {[%emt 0:00:30]} 22. Bd2 {[%emt 0:00:14]} Ne4 {[%emt 0:02:12]} 23. Rf1 {[%emt 0:02:14]} Bg7 {[%emt 0:02:12]} 24. Nf3 {[%emt 0:02:21]} Rf8 {[%emt 0:03:12]} 25. Be1 {[%emt 0:01:38]} Rcf7 {[%emt 0:03:08]} 26. Nd2 {[%emt 0:01:22]} Rxf1+ {[%emt 0:02:51]} 27. Nxf1 {[%emt 0:00:06]} e5 {[%emt 0:01:51]} 28. Rf3 {[%emt 0:01:55]} Ng5 {[%emt 0:00:54]} 29. Rxf8+ {[%emt 0:00:14]} Qxf8 {[%emt 0:00:04]} 30. Kg2 {[%emt 0:01:54]} e4 {[%emt 0:00:35]} 31. Nd2 {[%emt 0:00:45]} Qf7 {[%emt 0:01:17]} 1/2-1/2